bitfinex-derivatives/quotes_ETHF0:USTF0_20210107
["timestamp","ask_amount","ask_price","bid_price","bid_amount"]
[1610026542386,34.00959,1215.6,1215.2,65.865]
[1610026542588,34.00959,1215.6,1213.6,6.284]
[1610026542787,37.48459,1215.6,1214.8,52.2723]
[1610026543788,4.00959,1215.2,1215.1,4.00959]
[1610026544188,34.00959,1215.2,1215.1,4.00959]
[1610026546093,33.99104684,1215.2,1214.8,52.2723]
[1610026546293,33.99104684,1215.2,1213.6,6.284]
[1610026546493,3.99104684,1215.2,1214.2,47.4592]
[1610026546693,33.99104684,1215.2,1214.2,47.4592]
[1610026547896,30.0,1215.4,1214.8,4.00959]
[1610026548895,30.0,1215.5,1214.8,4.00959]
[1610026549896,4.00959,1214.9,1214.8,4.00959]
[1610026550796,4.00959,1214.9,1214.8,56.84499]
[1610026552100,4.00959,1214.9,1214.8,4.00959]
[1610026553601,34.00959,1214.9,1214.8,4.00959]
[1610026555303,34.00959,1214.9,1213.6,6.284]
[1610026555503,34.00959,1214.9,1213.2,5.708]
[1610026555703,4.00959,1214.9,1213.9,55.1962]
[1610026555903,94.9375,1215.4,1214.3,4.00959]
[1610026557304,94.9375,1215.4,1214.3,10.99839]
[1610026557904,4.00959,1214.4,1214.3,10.99839]
[1610026559605,94.9375,1215.4,1214.3,10.99839]
[1610026559905,4.00959,1214.8,1214.6,4.00959]
[1610026560105,4.00959,1214.8,1214.6,62.06359]
[1610026560307,3.475,1215.5,1214.6,62.06359]
[1610026560506,33.475,1215.5,1214.6,4.00959]
[1610026560706,30.0,1215.5,1215.0,47.6268]
[1610026560907,6.912,1215.6,1215.0,47.6268]
[1610026561908,6.912,1215.6,1215.1,4.00959]
[1610026563910,4.00959,1215.2,1215.1,4.00959]
[1610026564309,4.00959,1215.2,1214.4,63.9654]
[1610026565709,34.00959,1215.2,1214.4,63.9654]
[1610026565908,4.00959,1214.7,1214.4,67.97499]
[1610026567913,4.00959,1214.5,1214.4,67.97499]
[1610026568214,4.00959,1214.5,1214.4,4.00959]
[1610026572617,4.00959,1214.5,1213.9,51.6624]
[1610026573920,30.0,1215.2,1214.2,4.00959]
[1610026576043,4.00959,1214.3,1214.2,4.00959]
[1610026584932,30.0,1215.5,1214.2,4.00959]
[1610026585132,30.0,1215.5,1214.4,53.5754]
[1610026586132,4.00959,1214.6,1214.5,4.00959]
[1610026587133,4.00959,1214.6,1214.2,50.92]
[1610026588033,4.00959,1214.3,1214.2,54.92959]
[1610026588935,30.0,1215.5,1214.2,54.92959]
[1610026589435,1.0,1214.4,1214.2,54.92959]
[1610026592236,1.0,1214.4,1214.2,4.00959]
[1610026592836,10.387,1215.6,1214.2,4.00959]
[1610026593236,10.387,1215.6,1214.9,52.2819]
[1610026594036,10.92159,1215.6,1215.4,4.00959]
[1610026594237,10.92159,1215.6,1215.5,9.0988]
[1610026594635,4.00959,1215.6,1215.5,9.0988]
[1610026594836,10.23,1215.7,1215.5,9.0988]
[1610026596038,10.23,1215.7,1215.6,4.00959]
[1610026598239,10.23,1215.7,1215.6,70.47609]
[1610026598440,10.23,1215.7,1215.6,4.00959]
[1610026599640,10.23,1215.7,1215.3,47.4711]
[1610026600041,4.00959,1215.4,1215.3,51.48069]
[1610026600242,10.23,1215.7,1215.3,51.48069]
[1610026602049,10.23,1215.7,1215.6,4.00959]
[1610026604052,14.23959,1215.7,1215.6,4.00959]
[1610026608658,14.23959,1215.7,1213.7,5.8262]
[1610026608859,21.15159,1215.7,1214.9,56.8949]
[1610026610059,17.142,1215.7,1215.2,4.00959]
[1610026612161,4.00959,1215.3,1215.2,4.00959]
[1610026613967,17.142,1215.7,1215.2,4.00959]
[1610026614169,4.00959,1215.5,1215.2,4.00959]
[1610026616177,21.15159,1215.7,1215.4,4.00959]
[1610026618080,21.15159,1215.7,1215.6,4.00959]
[1610026618379,14.23959,1215.7,1215.6,4.00959]
[1610026622683,10.23,1215.7,1215.6,12.10559]
[1610026622882,10.23,1215.7,1215.6,4.00959]
[1610026623282,10.23,1215.7,1215.6,57.97399]
[1610026625587,10.23,1215.7,1215.6,4.00959]
[1610026626188,14.23959,1215.7,1215.6,4.00959]
[1610026628692,10.23,1215.7,1215.6,4.00959]
[1610026629294,10.23,1215.7,1215.6,11.15739]
[1610026634301,14.23959,1215.7,1215.6,4.00959]
[1610026634801,14.23959,1215.7,1215.1,56.4673]
[1610026636303,4.00959,1215.2,1215.1,4.00959]
[1610026640804,4.00959,1215.2,1215.1,57.01149]
[1610026642007,10.23,1215.7,1215.1,57.01149]
[1610026642207,4.00959,1215.4,1215.1,4.00959]
[1610026644212,4.00959,1215.2,1215.1,4.00959]
[1610026644911,10.23,1215.7,1215.1,4.00959]
[1610026645313,10.23,1215.7,1215.3,55.6844]
[1610026646313,10.23,1215.7,1215.5,4.00959]
[1610026647315,10.23,1215.7,1215.3,55.6844]
[1610026648217,4.00959,1215.5,1215.3,55.6844]
[1610026648418,4.00959,1215.5,1214.1,5.8742]
[1610026648620,7.48459,1215.5,1215.1,46.76]
[1610026648818,4.00959,1215.5,1215.1,46.76]
[1610026650319,4.00959,1215.5,1215.3,4.00959]
[1610026651422,4.00959,1215.5,1215.1,46.76]
[1610026652321,47.142,1215.7,1215.3,4.00959]
[1610026653723,36.912,1215.7,1214.7,68.5306]
[1610026654322,36.912,1215.7,1214.8,4.00959]
[1610026656329,4.00959,1214.9,1214.8,4.00959]
[1610026659528,36.912,1215.7,1214.8,4.00959]
[1610026659929,36.912,1215.7,1215.0,48.81]
[1610026660328,4.00959,1215.5,1215.3,4.00959]
[1610026662631,4.00959,1215.5,1215.3,12.30299]
[1610026662930,6.912,1215.7,1215.3,12.30299]
[1610026664232,6.912,1215.7,1215.3,4.00959]
[1610026664432,6.912,1215.7,1215.6,4.00959]
[1610026664633,4.00959,1215.8,1215.6,4.00959]
[1610026665535,33.475,1216.3,1215.6,4.00959]
[1610026666436,4.00959,1215.8,1215.6,4.00959]
[1610026667640,4.00959,1215.8,1215.5,67.1092]
[1610026668440,4.00959,1215.6,1215.5,67.1092]
[1610026669443,4.00959,1215.6,1215.3,4.00959]
[1610026670443,4.00959,1215.4,1215.1,71.39969]
[1610026671746,4.00959,1215.4,1215.1,67.3901]
[1610026672447,33.475,1216.3,1215.2,4.00959]
[1610026674452,4.00959,1215.3,1215.2,4.00959]
[1610026675253,33.475,1216.3,1215.1,67.3901]
[1610026676452,4.00959,1215.3,1215.2,4.00959]
[1610026676853,4.00959,1215.3,1215.1,67.3901]
[1610026680259,4.00959,1215.3,1215.0,4.00959]
[1610026680659,4.00959,1215.3,1215.2,4.00959]
[1610026681258,4.00959,1215.3,1214.7,67.954]
[1610026682660,4.00959,1215.0,1214.9,4.00959]
[1610026683063,4.00959,1215.0,1214.7,67.954]
[1610026684664,4.00959,1215.0,1214.9,4.00959]
[1610026684965,4.00959,1215.0,1214.7,67.954]
[1610026685165,4.00959,1215.0,1063.1,0.55692677]
[1610026685365,14.39659,1215.0,1213.8,64.6112]
[1610026685566,14.39659,1215.0,1210.7,11.65201604]
[1610026685764,14.39659,1215.0,1213.3,49.7868]
[1610026685964,14.39659,1215.0,1210.7,3.475]
[1610026686164,14.39659,1215.0,1210.8,6.0097]
[1610026686364,14.39659,1215.0,1212.4,61.9028]
[1610026686765,10.387,1215.0,1214.1,4.00959]
[1610026687366,10.387,1215.0,1214.1,13.46999]
[1610026688367,10.387,1215.0,1214.3,47.0177]
[1610026688771,4.00959,1214.6,1214.3,51.02729]
[1610026692877,4.00959,1214.4,1214.3,51.02729]
[1610026693277,10.387,1215.0,1214.3,51.02729]
[1610026694778,4.00959,1214.6,1214.3,51.02729]
[1610026696781,4.00959,1214.4,1214.3,51.02729]
[1610026696981,4.00959,1214.4,1214.3,4.00959]
[1610026698182,4.00959,1214.4,1214.1,66.8944]
[1610026698785,4.00959,1214.2,1214.1,70.90399]
[1610026701587,4.00959,1214.2,1214.1,4.00959]
[1610026702787,4.00959,1214.2,1213.7,60.69949]
[1610026704791,4.00959,1213.8,1213.7,60.69949]
[1610026704990,56.1343,1214.8,1213.7,60.69949]
[1610026706893,4.00959,1214.0,1213.7,60.69949]
[1610026708395,4.00959,1214.0,1213.7,56.6899]
[1610026708898,4.00959,1213.8,1213.7,60.69949]
[1610026709698,56.1343,1214.8,1213.7,60.69949]
[1610026710400,86.1343,1214.8,1213.7,60.69949]
[1610026710902,4.00959,1213.9,1213.7,60.69949]
[1610026712203,4.00959,1213.9,1213.7,56.6899]
[1610026712904,4.00959,1214.1,1213.8,4.00959]
[1610026713204,4.00959,1214.1,1213.7,56.6899]
[1610026713905,4.00959,1214.1,1212.5,6.1336]
[1610026714105,7.48459,1214.1,1213.1,64.836]
[1610026714609,7.48459,1214.1,1212.5,6.1336]
[1610026714806,7.48459,1214.1,1212.9,55.6909]
[1610026715005,4.00959,1213.8,1213.7,4.00959]
[1610026715606,4.00959,1213.8,1213.2,64.532]
[1610026717007,4.00959,1213.8,1213.5,4.00959]
[1610026721115,4.00959,1213.6,1213.5,4.00959]
[1610026723022,4.00959,1213.6,1213.2,64.532]
[1610026723625,4.00959,1213.6,1211.8,5.6845]
[1610026723821,4.00959,1213.6,1212.0,63.8091]
[1610026725022,4.00959,1212.8,1212.7,4.00959]
[1610026726424,6.912,1214.0,1212.7,4.00959]
[1610026726624,6.912,1214.0,1212.8,63.4261]
[1610026727024,4.00959,1212.9,1212.8,63.4261]
[1610026727225,4.00959,1212.9,1212.7,4.00959]
[1610026730230,4.00959,1212.9,1212.4,58.7408]
[1610026730430,55.7994,1212.5,1211.0,5.9705]
[1610026730838,55.7994,1212.5,1210.9,6.0809]
[1610026731033,30.0,1212.8,1210.9,6.0809]
[1610026731234,64.3823,1211.9,1210.9,6.0809]
[1610026731447,30.0,1212.8,1209.6,6.2377]
[1610026731643,30.0,1212.8,1209.7,5.6969]
[1610026731845,56.6001,1212.8,1210.0,67.5123]
[1610026732441,30.0,1212.7,1210.0,67.5123]
[1610026732849,3.475,1212.9,1211.1,52.581]
[1610026733033,33.475,1212.9,1209.7,5.6969]
[1610026733433,33.475,1212.9,1210.2,57.0912]
[1610026733644,33.475,1212.9,1210.9,57.3297]
[1610026735274,4.00959,1211.0,1210.9,4.00959]
[1610026735432,33.475,1212.9,1210.9,4.00959]
[1610026735634,61.1097,1212.4,1210.9,4.00959]
[1610026735832,91.1097,1212.4,1210.7,47.2669]
[1610026736033,61.1097,1212.4,1210.7,47.2669]
[1610026736233,91.1097,1212.4,1210.7,47.2669]
[1610026737234,4.00959,1210.8,1210.7,47.2669]
[1610026737435,4.00959,1210.8,1210.5,4.00959]
[1610026738134,4.00959,1210.8,1210.0,65.986]
[1610026739135,67.0857,1211.5,1210.3,4.00959]
[1610026739535,30.0,1212.3,1210.3,4.00959]
[1610026739735,6.2278,1212.5,1210.5,52.7608]
[1610026739935,10.387,1212.9,1210.3,4.00959]
[1610026740135,10.387,1212.9,1211.0,55.4322]
[1610026741150,10.387,1212.9,1211.4,4.00959]
[1610026741737,10.387,1212.9,1211.0,55.4322]
[1610026742738,40.387,1212.9,1209.6,5.8089]
[1610026743292,49.8266,1212.7,1209.8,61.3641]
[1610026743295,79.8266,1212.7,1209.8,61.3641]
[1610026744476,4.00959,1211.2,1210.9,4.00959]
[1610026744494,4.00959,1211.2,1209.8,61.3641]
[1610026745238,4.00959,1210.8,1210.7,4.00959]
[1610026745639,4.00959,1210.8,1209.6,5.8089]
[1610026746043,4.00959,1210.8,1209.3,48.9616]
[1610026747140,4.00959,1210.8,1209.1,6.2671]
[1610026747341,4.00959,1210.8,1209.8,65.0083]
[1610026748144,4.00959,1210.8,1209.1,6.2671]
[1610026748747,4.00959,1210.8,1209.0,57.3137]
[1610026749348,59.0573,1211.4,1209.7,4.00959]
[1610026750850,89.0573,1211.4,1209.7,4.00959]
[1610026751054,89.0573,1211.4,1209.0,57.3137]
[1610026751252,4.00959,1209.6,1209.3,4.00959]
[1610026752850,62.9095,1210.6,1209.3,4.00959]
[1610026753050,2.4832,1211.1,1209.3,4.00959]
[1610026753251,2.4832,1211.1,1208.0,5.6975]
[1610026753252,2.4832,1211.1,1209.7,4.00959]
[1610026754855,6.126,1211.3,1209.7,4.00959]
[1610026755054,6.126,1211.3,1209.7,12.88339]
[1610026755255,4.00959,1210.6,1210.1,4.00959]
[1610026757254,4.00959,1210.6,1210.5,4.00959]
[1610026759054,4.00959,1210.6,1210.0,67.7237]
[1610026759254,10.387,1211.7,1210.2,4.00959]
[1610026759657,10.387,1211.7,1208.6,5.7726]
[1610026759855,47.4167,1211.5,1208.6,5.7726]
[1610026760056,57.6467,1211.5,1208.6,5.7726]
[1610026760354,87.6467,1211.5,1208.6,5.7726]
[1610026761356,4.00959,1210.1,1209.7,4.00959]
[1610026761757,10.23,1211.5,1209.7,4.00959]
[1610026763258,4.00959,1210.4,1210.2,4.00959]
[1610026764958,10.23,1211.5,1210.2,4.00959]
[1610026765361,10.23,1211.5,1210.5,4.00959]
[1610026766363,10.23,1211.5,1210.5,59.32659]
[1610026767365,10.23,1211.5,1211.4,4.00959]
[1610026767567,4.00959,1211.6,1211.4,4.00959]
[1610026767767,10.387,1211.7,1211.4,4.00959]
[1610026768166,58.364,1213.0,1211.4,4.00959]
[1610026769366,58.364,1213.0,1212.1,4.00959]
[1610026769566,37.747,1213.0,1212.1,4.00959]
[1610026770468,34.916,1213.0,1212.1,4.00959]
[1610026771270,4.00959,1212.2,1212.1,4.00959]
[1610026771470,38.391,1213.0,1212.1,4.00959]
[1610026773270,38.391,1213.0,1212.5,4.00959]
[1610026773271,4.00959,1212.8,1212.5,4.00959]
[1610026773670,4.00959,1212.8,1212.6,59.7122]
[1610026774371,2.7949,1213.4,1212.6,59.7122]
[1610026774571,2.7949,1213.4,1212.5,4.00959]
[1610026774771,2.7949,1213.4,1212.7,60.3896]
[1610026775372,4.00959,1213.0,1212.9,4.00959]
[1610026775773,2.7949,1213.4,1212.9,4.00959]
[1610026775971,20.617,1214.5,1212.9,4.00959]
[1610026775972,1.9626,1214.1,1212.9,4.00959]
[1610026776973,50.617,1214.5,1212.9,4.00959]
[1610026777374,50.617,1214.5,1213.2,4.00959]
[1610026777574,50.617,1214.5,1213.2,12.74339]
[1610026777778,20.617,1214.5,1213.2,12.74339]
[1610026779379,4.00959,1213.7,1213.4,4.00959]
[1610026781381,4.00959,1213.5,1213.4,4.00959]
[1610026782482,20.617,1214.5,1213.4,4.00959]
[1610026783382,4.00959,1213.7,1213.4,4.00959]
[1610026784484,20.617,1214.5,1213.4,4.00959]
[1610026785086,20.617,1214.5,1213.4,50.89529]
[1610026785486,20.617,1214.5,1213.9,4.00959]
[1610026786486,20.617,1214.5,1213.8,46.3135]
[1610026787487,4.00959,1213.9,1213.8,46.3135]
[1610026787686,4.00959,1213.9,1213.6,4.00959]
[1610026788086,4.00959,1213.9,1213.1,54.1807]
[1610026788286,4.00959,1213.9,1212.4,73.5614]
[1610026788487,4.00959,1213.9,1212.4,67.2829]
[1610026789387,4.00959,1212.9,1212.8,4.00959]
[1610026789688,53.6582,1214.5,1212.8,4.00959]
[1610026791091,53.6582,1214.5,1212.8,10.63869]
[1610026791294,23.6582,1214.5,1212.8,4.00959]
[1610026791492,4.00959,1213.5,1213.1,65.04129]
[1610026793693,4.00959,1213.5,1213.1,4.00959]
[1610026796496,4.00959,1213.5,1212.8,66.1934]
[1610026797396,4.00959,1213.3,1213.2,4.00959]
[1610026797596,4.00959,1213.3,1212.8,66.1934]
[1610026798699,23.6582,1214.5,1212.8,66.1934]
[1610026799398,4.00959,1213.3,1213.1,4.00959]
[1610026799600,4.00959,1213.3,1213.2,8.4294]
[1610026802803,4.00959,1213.3,1211.2,6.2145]
[1610026803002,14.39659,1213.3,1211.2,6.2145]
[1610026803204,44.39659,1213.3,1211.4,64.5108]
[1610026803402,4.00959,1212.1,1211.8,4.00959]
[1610026805606,4.00959,1211.9,1211.8,4.00959]
[1610026806505,34.00959,1211.9,1203.5,10.56840067]
[1610026806705,37.48459,1211.9,1208.0,6.0986]
[1610026806905,51.8699,1211.7,1208.4,60.5926]
[1610026807107,30.0,1211.6,1208.4,60.5926]
[1610026807513,4.00959,1209.9,1209.4,4.00959]
[1610026809609,4.00959,1209.9,1209.7,4.00959]
[1610026810911,4.00959,1209.9,1208.1,5.8145]
[1610026811110,4.00959,1209.9,1208.1,63.1959]
[1610026811510,53.262,1210.5,1209.7,4.00959]
[1610026811910,3.128,1211.0,1209.7,4.00959]
[1610026813012,2.6285,1211.3,1209.7,4.00959]
[1610026813213,30.0,1211.3,1209.7,4.00959]
[1610026813418,30.0,1211.3,1209.3,51.1725]
[1610026813616,32.6075,1211.3,1209.4,4.00959]
[1610026813820,32.6075,1211.3,1209.3,51.1725]
[1610026815516,4.00959,1209.8,1209.7,4.00959]
[1610026815716,2.1404,1210.8,1209.7,4.00959]
[1610026817117,32.6075,1211.3,1209.7,4.00959]
[1610026817518,32.6075,1211.3,1209.9,4.00959]
[1610026818420,32.6075,1211.3,1209.3,51.1725]
[1610026819521,4.00959,1210.3,1210.1,4.00959]
[1610026820624,4.00959,1210.3,1209.3,51.1725]
[1610026820824,4.00959,1210.3,1208.1,5.8145]
[1610026821025,4.00959,1210.3,1208.7,50.4537]
[1610026821624,30.0,1210.7,1208.7,50.4537]
[1610026823626,30.0,1210.7,1209.5,4.00959]
[1610026824026,33.1377,1210.7,1209.6,47.2594]
[1610026824927,33.1377,1210.7,1209.5,4.00959]
[1610026825530,4.00959,1209.6,1209.3,4.00959]
[1610026825730,30.0,1210.6,1209.3,4.00959]
[1610026826535,30.0,1210.5,1209.3,4.00959]
[1610026827536,4.00959,1209.7,1209.5,4.00959]
[1610026827935,30.0,1210.9,1209.5,4.00959]
[1610026828536,30.0,1210.9,1209.5,70.58809]
[1610026829036,6.2684,1211.0,1209.5,70.58809]
[1610026829639,4.00959,1210.2,1209.5,66.5785]
[1610026831643,3.475,1211.0,1209.9,4.00959]
[1610026833646,4.00959,1210.0,1209.9,4.00959]
[1610026833845,3.475,1211.0,1209.9,4.00959]
[1610026834046,3.475,1211.0,1209.9,59.13319]
[1610026835644,3.475,1211.0,1210.5,4.00959]
[1610026837745,3.475,1211.0,1210.8,4.00959]
[1610026838546,3.475,1211.0,1210.7,49.8141]
[1610026839653,3.475,1211.0,1210.9,4.00959]
[1610026840050,4.00959,1211.3,1210.9,4.00959]
[1610026841654,4.00959,1211.3,1211.1,4.00959]
[1610026844652,4.00959,1211.3,1210.4,58.1757]
[1610026845651,10.387,1211.9,1210.6,4.00959]
[1610026847658,4.00959,1211.2,1210.8,4.00959]
[1610026851062,4.00959,1211.2,1210.5,49.0326]
[1610026851662,4.00959,1210.8,1210.5,53.04219]
[1610026852063,4.00959,1210.8,1209.2,11.9862]
[1610026852263,7.48459,1210.8,1209.2,76.545]
[1610026852563,7.48459,1210.8,1209.2,70.3471]
[1610026853666,7.48459,1210.8,1210.4,4.00959]
[1610026854065,4.00959,1210.8,1210.4,4.00959]
[1610026854266,5.6723,1211.8,1210.4,4.00959]
[1610026855668,4.00959,1211.1,1210.7,4.00959]
[1610026856569,4.00959,1211.1,1210.7,10.65969]
[1610026856769,3.475,1211.8,1210.7,10.65969]
[1610026856972,3.475,1211.8,1210.7,4.00959]
[1610026857171,3.475,1211.8,1210.9,49.2987]
[1610026857773,3.475,1211.8,1211.4,4.00959]
[1610026857976,10.23,1211.9,1211.4,4.00959]
[1610026859678,10.23,1211.9,1211.8,4.00959]
[1610026863679,14.23959,1211.9,1211.8,4.00959]
[1610026864080,14.23959,1211.9,1211.8,2.70959]
[1610026864280,14.23959,1211.9,1211.5,63.9477]
[1610026865484,14.23959,1211.9,1210.2,11.8645]
[1610026865684,4.00959,1211.1,1210.8,4.00959]
[1610026866289,4.00959,1211.1,1210.2,5.741]
[1610026866485,4.00959,1211.1,1209.9,54.5883]
[1610026867688,4.00959,1211.1,1210.9,4.00959]
[1610026868990,4.00959,1211.1,1209.9,54.5883]
[1610026869790,4.00959,1210.9,1210.7,4.00959]
[1610026869990,4.00959,1210.9,1209.9,54.5883]
[1610026871792,4.00959,1210.9,1210.6,4.00959]
[1610026872894,20.617,1211.9,1210.6,4.00959]
[1610026873596,20.617,1211.9,1210.6,57.67129]
[1610026873794,4.00959,1211.4,1211.1,4.00959]
[1610026875795,4.00959,1211.2,1211.1,4.00959]
[1610026875995,4.00959,1211.2,1210.6,53.6617]
[1610026877397,4.00959,1211.2,1208.7,12.0076]
[1610026877597,4.00959,1211.2,1209.3,51.1737]
[1610026877798,4.00959,1211.0,1210.8,4.00959]
[1610026878601,4.00959,1211.0,1210.6,65.5902]
[1610026879302,20.617,1211.9,1210.6,65.5902]
[1610026879704,20.617,1211.9,1209.5,6.1027]
[1610026880104,20.617,1211.9,1210.9,60.6738]
[1610026880305,20.617,1211.9,1209.5,6.1027]
[1610026880506,20.617,1211.9,1210.4,67.0217]
[1610026881807,20.617,1211.9,1210.9,4.00959]
[1610026882007,17.142,1211.9,1210.9,4.00959]
[1610026882208,17.142,1211.9,1210.4,67.0217]
[1610026882407,20.617,1211.9,1209.5,6.1027]
[1610026882610,20.617,1211.9,1210.3,58.538]
[1610026883810,4.00959,1211.1,1210.7,4.00959]
[1610026885511,4.00959,1211.1,1210.7,10.77339]
[1610026885911,4.00959,1211.1,1211.0,4.00959]
[1610026886310,4.00959,1211.1,1210.7,6.7638]
[1610026887813,4.00959,1210.8,1210.7,6.7638]
[1610026896528,20.617,1211.9,1210.7,6.7638]
[1610026897529,20.617,1211.9,1210.6,4.00959]
[1610026897929,4.00959,1211.2,1211.1,63.8755]
[1610026898436,20.617,1211.9,1211.1,63.8755]
[1610026899033,17.142,1211.9,1211.1,63.8755]
[1610026899930,21.15159,1211.9,1211.7,4.00959]
[1610026900132,10.92159,1211.9,1211.8,8.1472]
[1610026905432,10.92159,1211.9,1209.6,5.7876]
[1610026905632,24.62659,1211.9,1209.6,5.7876]
[1610026905832,24.62659,1211.9,1209.9,49.0394]
[1610026906032,4.00959,1210.9,1210.6,4.00959]
[1610026906934,4.00959,1210.9,1210.6,10.94899]
[1610026907332,20.617,1211.9,1210.6,4.00959]
[1610026907531,13.705,1211.9,1210.6,4.00959]
[1610026907732,13.705,1211.9,1210.9,57.3033]
[1610026907733,10.23,1211.9,1210.9,57.3033]
[1610026907932,4.00959,1211.0,1210.9,57.3033]
[1610026910033,20.617,1211.9,1210.9,57.3033]
[1610026910234,10.23,1211.9,1210.8,4.00959]
[1610026910435,10.23,1211.9,1211.4,51.5868]
[1610026912036,10.23,1211.9,1211.5,4.00959]
[1610026914139,4.00959,1211.6,1211.5,4.00959]
[1610026916240,10.23,1211.9,1211.5,4.00959]
[1610026916639,10.23,1211.9,1211.8,66.4048]
[1610026918242,10.23,1211.9,1211.8,70.41439]
[1610026920145,14.23959,1211.9,1211.8,70.41439]
[1610026923346,10.23,1211.9,1211.8,70.41439]
[1610026925450,10.23,1211.9,1211.8,4.00959]
[1610026926351,10.387,1213.1,1212.5,46.3613]
[1610026928251,10.387,1213.1,1212.8,4.00959]
[1610026928651,10.387,1213.1,1212.5,46.3613]
[1610026930254,4.00959,1212.6,1212.5,46.3613]
[1610026931454,10.387,1213.1,1212.5,46.3613]
[1610026932160,4.00959,1212.8,1212.6,4.00959]
[1610026932557,10.387,1213.1,1212.6,4.00959]
[1610026934263,10.387,1213.1,1212.5,46.3613]
[1610026935063,15.387,1213.1,1212.5,46.3613]
[1610026936364,15.387,1213.1,1213.0,4.00959]
[1610026936564,8.475,1213.1,1213.0,4.00959]
[1610026937465,8.475,1213.1,1212.8,49.2339]
[1610026937663,8.475,1213.1,1211.2,12.1753]
[1610026937864,15.387,1213.1,1212.7,52.555]
[1610026938065,15.387,1213.1,1211.2,6.2687]
[1610026938264,19.39659,1213.1,1212.8,4.00959]
[1610026939968,15.387,1213.1,1212.8,4.00959]
[1610026940365,15.387,1213.1,1213.0,4.00959]
[1610026940565,8.475,1213.1,1213.0,4.00959]
[1610026941764,8.475,1213.1,1212.8,51.0816]
[1610026942365,4.00959,1212.9,1212.8,51.0816]
[1610026943066,8.475,1213.1,1212.8,51.0816]
[1610026944269,4.00959,1213.0,1212.9,4.00959]
[1610026944867,4.00959,1213.0,1212.8,51.0816]
[1610026945267,8.475,1213.1,1212.8,51.0816]
[1610026946268,8.475,1213.1,1213.0,4.00959]
[1610026952778,8.475,1213.1,1213.0,62.20719]
[1610026954680,8.475,1213.1,1213.0,58.1976]
[1610026955879,8.475,1213.1,1211.3,5.6946]
[1610026956080,15.387,1213.1,1211.7,58.4283]
[1610026956280,15.387,1213.1,1212.5,4.00959]
[1610026956684,15.387,1213.1,1212.6,57.3195]
[1610026956882,15.387,1213.1,1212.5,4.00959]
[1610026957285,15.387,1213.1,1213.0,56.8144]
[1610026957483,8.475,1213.1,1213.0,56.8144]
[1610026959486,8.475,1213.1,1212.8,4.00959]
[1610026959687,8.475,1213.1,1212.5,68.5177]
[1610026959885,8.475,1213.1,1211.8,157.8695]
[1610026960085,8.475,1213.1,1211.2,6.2687]
[1610026960286,4.00959,1212.9,1212.8,4.00959]
[1610026960485,15.387,1213.1,1212.8,4.00959]
[1610026960685,8.475,1213.1,1212.8,4.00959]
[1610026961084,8.475,1213.1,1213.0,63.003]
[1610026961291,8.475,1213.1,1212.8,4.00959]
[1610026961485,8.475,1213.1,1212.8,69.38209]
[1610026962387,4.00959,1213.0,1212.8,69.38209]
[1610026966293,8.475,1213.1,1212.8,69.38209]
[1610026966492,8.475,1213.1,1213.0,4.00959]
[1610026972299,5.0,1213.1,1213.0,4.00959]
[1610026999327,5.0,1213.1,1213.0,54.11479]
[1610027005134,5.0,1213.1,1213.0,4.00959]
[1610027005537,5.0,1213.1,1213.0,66.13619]
[1610027007037,5.0,1213.1,1213.0,4.00959]
[1610027027361,10.387,1214.2,1213.0,4.00959]
[1610027027560,10.387,1214.2,1213.4,48.2774]
[1610027027760,6.912,1214.2,1213.4,48.2774]
[1610027028861,6.912,1214.2,1214.1,4.00959]
[1610027030562,6.912,1214.2,1213.8,50.6118]
[1610027030762,4.00959,1214.1,1213.9,4.00959]
[1610027034364,6.912,1214.2,1213.9,4.00959]
[1610027034865,10.92159,1214.2,1214.1,4.00959]
[1610027035767,6.912,1214.2,1214.1,4.00959]
[1610027036767,10.92159,1214.2,1214.1,4.00959]
[1610027037467,10.92159,1214.2,1212.5,6.2839]
[1610027037468,10.92159,1214.2,1213.5,53.4598]
[1610027038970,6.912,1214.2,1213.5,53.4598]
[1610027039572,36.912,1214.2,1212.5,6.2839]
[1610027039770,40.387,1214.2,1212.7,52.9288]
[1610027039970,40.387,1214.2,1209.7,8.18405022]
[1610027040370,40.387,1214.2,1211.1,58.951]
[1610027040570,10.387,1214.2,1211.2,5.9408]
[1610027040771,10.387,1214.2,1212.0,54.8558]
[1610027040970,10.387,1214.2,1213.0,4.00959]
[1610027041872,49.1616,1214.2,1213.0,4.00959]
[1610027042072,49.1616,1214.2,1212.0,54.8558]
[1610027042871,4.00959,1212.8,1212.6,4.00959]
[1610027044373,4.00959,1212.8,1212.6,13.18679]
[1610027047374,19.1616,1214.2,1212.6,13.18679]
[1610027047676,49.1616,1214.2,1212.6,13.18679]
[1610027048679,19.1616,1214.2,1212.6,13.18679]
[1610027048878,19.1616,1214.2,1212.8,4.00959]
[1610027050980,4.00959,1213.1,1212.8,4.00959]